fUSD/lending_fUSD_20250105
["ID","MTS","AMOUNT","RATE_DAILY","PERIOD"]
[347693476,1736069951948,-500.0,8.422e-05,2]
[347693477,1736069951973,-500.0,8.422e-05,2]
[347693478,1736069951998,-500.0,8.422e-05,2]
[347693479,1736069952029,-1171.84,8.422e-05,2]
[347693480,1736069952055,-500.0,8.422e-05,2]
[347693481,1736069952081,-500.0,8.422e-05,2]
[347693482,1736069952106,-500.0,8.422e-05,2]
[347693483,1736069952132,-500.0,8.422e-05,2]
[347693484,1736069952157,-500.0,8.422e-05,2]
[347693485,1736069952182,-500.0,8.422e-05,2]
[347693486,1736069952210,-500.0,8.422e-05,2]
[347693487,1736069952235,-500.0,8.422e-05,2]
[347693488,1736069952260,-1349.43,8.422e-05,2]
[347693489,1736069952288,-500.0,8.422e-05,2]
[347693490,1736069952313,-500.0,8.422e-05,2]
[347693491,1736069952360,-500.0,8.422e-05,2]
[347693492,1736069952387,-500.0,8.422e-05,2]
[347693493,1736069952416,-500.0,8.422e-05,2]
[347693494,1736069952444,-500.0,8.422e-05,2]
[347693495,1736069952471,-500.0,8.422e-05,2]
[347693496,1736069952498,-500.0,8.422e-05,2]
[347693497,1736069952527,-500.0,8.422e-05,2]
[347693498,1736069952554,-500.0,8.422e-05,2]
[347693499,1736069952581,-500.0,8.422e-05,2]
[347693500,1736069952608,-500.0,8.422e-05,2]
[347693501,1736069952634,-500.0,8.422e-05,2]
[347693502,1736069952661,-500.0,8.422e-05,2]
[347693503,1736069952688,-500.0,8.422e-05,2]
[347693504,1736069952714,-500.0,8.422e-05,2]
[347693505,1736069952739,-500.0,8.422e-05,2]
[347693506,1736069952767,-500.0,8.422e-05,2]
[347693507,1736069952794,-500.0,8.422e-05,2]
[347693508,1736069952820,-500.0,8.422e-05,2]
[347693509,1736069952846,-1260.26,8.422e-05,2]
[347693510,1736069952872,-500.0,8.422e-05,2]
[347693511,1736069952903,-500.0,8.422e-05,2]
[347693512,1736069952930,-500.0,8.422e-05,2]
[347693513,1736069952957,-500.0,8.422e-05,2]
[347693514,1736069953193,-500.0,8.422e-05,2]
[347693515,1736069953219,-500.0,8.422e-05,2]
[347693516,1736069953244,-500.0,8.422e-05,2]
[347693517,1736069953274,-500.0,8.422e-05,2]
[347693518,1736069953301,-500.0,8.422e-05,2]
[347693519,1736069953325,-500.0,8.422e-05,2]
[347693520,1736069953351,-500.0,8.422e-05,2]
[347693521,1736069953378,-500.0,8.422e-05,2]
[347693522,1736069953408,-500.0,8.422e-05,2]
[347693523,1736069953435,-544.10590707,8.422e-05,2]
[347693524,1736069953461,-500.0,8.422e-05,2]
[347693525,1736069953488,-500.0,8.422e-05,2]
[347693526,1736069953514,-500.0,8.422e-05,2]
[347693527,1736069953542,-500.0,8.422e-05,2]
[347693528,1736069953568,-500.0,8.422e-05,2]
[347693529,1736069953594,-500.0,8.422e-05,2]
[347693530,1736069953620,-500.0,8.422e-05,2]
[347693531,1736069953646,-500.0,8.422e-05,2]
[347693532,1736069953673,-500.0,8.422e-05,2]
[347693533,1736069953699,-500.0,8.422e-05,2]
[347693534,1736069953724,-548.79,8.422e-05,2]
[347693535,1736069953750,-500.0,8.422e-05,2]
[347693536,1736069953780,-500.0,8.422e-05,2]
[347693537,1736069953808,-500.0,8.422e-05,2]
[347693538,1736069953834,-500.0,8.422e-05,2]
[347693539,1736069953858,-500.0,8.422e-05,2]
[347693540,1736069953883,-500.0,8.422e-05,2]
[347693541,1736069953909,-1695.3,8.422e-05,2]
[347693542,1736069953935,-500.0,8.422e-05,2]
[347693543,1736069953960,-500.0,8.422e-05,2]
[347693544,1736069953985,-500.0,8.422e-05,2]
[347693545,1736069954011,-222.04095529,8.422e-05,2]
[347693547,1736070190929,2291.85,0.00013,30]
[347693548,1736070436406,-150.0,7.346e-05,2]
[347693549,1736070436429,-150.0,7.887e-05,2]
[347693550,1736070436453,-150.0,7.925e-05,2]
[347693551,1736070436474,-250.0,7.974e-05,2]
[347693552,1736070436495,-100.0,8.025e-05,2]
[347693553,1736070438254,-800.0,8.025e-05,2]
[347693554,1736070439481,-800.0,8.025e-05,2]
[347693555,1736070440597,-800.0,8.025e-05,2]
[347693556,1736070441606,-800.0,8.025e-05,2]
[347693557,1736070442633,-800.0,8.025e-05,2]
[347693558,1736070443627,-800.0,8.025e-05,2]
[347693559,1736070444602,-800.0,8.025e-05,2]
[347693560,1736070445854,-800.0,8.025e-05,2]
[347693561,1736070446629,-800.0,8.025e-05,2]
[347693562,1736070447757,-800.0,8.025e-05,2]
[347693563,1736070448825,-800.0,8.025e-05,2]
[347693564,1736070450494,-800.0,8.025e-05,2]
[347693565,1736070451710,-800.0,8.025e-05,2]
[347693567,1736070545167,-742.25,7.621e-05,2]
[347693568,1736070545188,-398.76,7.653e-05,2]
[347693569,1736070545211,-150.0,8.025e-05,2]
[347693570,1736070545233,-2528.43301887,8.135e-05,2]
[347693573,1736070631976,-1857.38,7.598e-05,2]
[347693574,1736070631986,-250.0,7.644e-05,2]
[347693575,1736070631995,-300.0,8.134e-05,2]
[347693576,1736070632004,-7620.52,8.135e-05,2]
[347693577,1736070632379,-13751.04698113,8.135e-05,2]
[347693578,1736070632388,-150.0,8.173e-05,2]
[347693579,1736070632398,-688.57,8.219e-05,2]
[347693580,1736070632407,-421.04,8.219e-05,2]
[347693581,1736070632416,-695.21,8.219e-05,2]
[347693583,1736070632425,-11392.76504081,8.219e-05,2]
[347693585,1736070632436,-3761.66670976,8.219e-05,2]
[347693587,1736070632445,-167.12,8.274e-05,2]
[347693589,1736070632454,-500.0,8.369e-05,2]
[347693591,1736070632464,-150.0,8.418e-05,2]
[347693593,1736070632473,-7408.81329024,8.419e-05,2]
[347693595,1736070632484,-1661.47568001,8.419e-05,2]
[347693598,1736070632506,-12555.48452049,8.419e-05,2]
[347693600,1736070632520,-500.0,8.42e-05,2]
[347693601,1736070632529,-3758.19,8.42e-05,2]
[347693602,1736070632538,-5731.39,8.42e-05,2]
[347693603,1736070632547,-2994.63,8.42e-05,2]
[347693604,1736070632556,-3131.65,8.42e-05,2]
[347693605,1736070632567,-3528.12,8.42e-05,2]
[347693606,1736070632576,-4142.76,8.42e-05,2]
[347693607,1736070632585,-601.31,8.42e-05,2]
[347693608,1736070632593,-500.0,8.42e-05,2]
[347693609,1736070632602,-500.0,8.42e-05,2]
[347693610,1736070632613,-500.0,8.42e-05,2]
[347693611,1736070632623,-518.58,8.421e-05,2]
[347693612,1736070632632,-176.570063,8.421e-05,2]
[347693619,1736070637873,-500.0,8.42e-05,2]
[347693621,1736070637883,-330.7264,8.42e-05,2]
[347693622,1736070637895,-169.2736,8.42e-05,2]
[347693623,1736070637904,-500.0,8.42e-05,2]
[347693624,1736070637914,-970.419937,8.421e-05,2]
[347693625,1736070637923,-1132.16,8.421e-05,2]
[347693626,1736070637932,-477.31115988,8.421e-05,2]
[347693627,1736070637942,-500.0,8.421e-05,2]
[347693628,1736070637951,-500.0,8.421e-05,2]
[347693629,1736070637960,-431.59007268,8.421e-05,2]
[347693630,1736070637970,-940.46,8.421e-05,2]
[347693631,1736070637979,-472.94677048,8.421e-05,2]
[347693632,1736070637988,-500.0,8.421e-05,2]
[347693633,1736070637997,-551.13,8.421e-05,2]
[347693634,1736070638006,-500.0,8.421e-05,2]
[347693635,1736070638177,-500.0,8.421e-05,2]
[347693636,1736070638187,-63.80725242,8.421e-05,2]
[347693637,1736070638199,-436.19274758,8.421e-05,2]
[347693638,1736070638209,-500.0,8.421e-05,2]
[347693640,1736070638218,-168.10247943,8.421e-05,2]
[347693644,1736070638246,-1327.48752057,8.421e-05,2]
[347693645,1736070638255,-500.0,8.421e-05,2]
[347693646,1736070638265,-500.0,8.421e-05,2]
[347693647,1736070638276,-500.0,8.421e-05,2]
[347693648,1736070638287,-500.0,8.421e-05,2]
[347693649,1736070638299,-500.0,8.421e-05,2]
[347693650,1736070638309,-603.75,8.421e-05,2]
[347693651,1736070638319,-500.0,8.421e-05,2]
[347693653,1736070638328,-1248.44,8.421e-05,2]
[347693655,1736070638337,-500.0,8.421e-05,2]
[347693656,1736070638346,-640.53,8.421e-05,2]
[347693657,1736070638356,-500.0,8.421e-05,2]
[347693659,1736070638365,-1041.0,8.421e-05,2]
[347693660,1736070638374,-500.0,8.421e-05,2]
[347693662,1736070638384,-266.06370301,8.421e-05,2]
[347693664,1736070638394,-522.60970642,8.421e-05,2]
[347693665,1736070638406,-10.30029358,8.421e-05,2]
[347693667,1736070638415,-500.0,8.421e-05,2]
[347693669,1736070638424,-500.0,8.421e-05,2]
[347693670,1736070638433,-500.0,8.421e-05,2]
[347693672,1736070638442,-500.0,8.421e-05,2]
[347693674,1736070638452,-500.0,8.421e-05,2]
[347693675,1736070638461,-500.0,8.421e-05,2]
[347693676,1736070638470,-500.0,8.421e-05,2]
[347693677,1736070638479,-203.28732124,8.421e-05,2]
[347693678,1736070639779,-16.49571264,8.421e-05,2]
[347693679,1736070639790,-280.21696612,8.421e-05,2]
[347693680,1736070639799,-500.0,8.421e-05,2]
[347693681,1736070639808,-39.13177234,8.421e-05,2]
[347693682,1736070639820,-460.86822766,8.421e-05,2]
[347693683,1736070639829,-500.0,8.421e-05,2]
[347693684,1736070639839,-500.0,8.421e-05,2]
[347693685,1736070639848,-500.0,8.421e-05,2]
[347693686,1736070639857,-1052.82,8.421e-05,2]
[347693688,1736070639866,-500.0,8.421e-05,2]
[347693690,1736070639875,-566.10075035,8.421e-05,2]
[347693723,1736070640195,-76.76327742,8.421e-05,2]
[347693725,1736070640204,-500.0,8.421e-05,2]
[347693727,1736070640214,-500.0,8.421e-05,2]
[347693728,1736070640223,-286.61,8.421e-05,2]
[347693730,1736070640232,-500.0,8.421e-05,2]
[347693731,1736070640242,-500.0,8.421e-05,2]
[347693732,1736070640251,-1123.01,8.421e-05,2]
[347693733,1736070640261,-500.0,8.421e-05,2]
[347693734,1736070640270,-500.0,8.421e-05,2]
[347693735,1736070640280,-500.0,8.421e-05,2]
[347693736,1736070640290,-1293.21,8.421e-05,2]
[347693737,1736070640300,-500.0,8.421e-05,2]
[347693738,1736070640309,-77.51852258,8.421e-05,2]
[347693757,1736070640473,-296.8164857,8.421e-05,2]
[347693759,1736070640484,-833.41499172,8.421e-05,2]
[347693762,1736070640493,-500.0,8.421e-05,2]
[347693765,1736070640502,-500.0,8.421e-05,2]
[347693768,1736070640511,-500.0,8.421e-05,2]
[347693770,1736070640521,-500.0,8.421e-05,2]
[347693772,1736070640532,-500.0,8.421e-05,2]
[347693774,1736070640542,-500.0,8.421e-05,2]
[347693776,1736070640550,-500.0,8.421e-05,2]
[347693778,1736070640560,-1856.98,8.421e-05,2]
[347693780,1736070640568,-500.0,8.421e-05,2]
[347693782,1736070640577,-500.0,8.421e-05,2]
[347693784,1736070640586,-500.0,8.421e-05,2]
[347693786,1736070640595,-500.0,8.421e-05,2]
[347693788,1736070640604,-500.0,8.421e-05,2]
[347693790,1736070640613,-222.01165208,8.421e-05,2]
[347693792,1736070640622,-500.0,8.421e-05,2]
[347693794,1736070640631,-500.0,8.421e-05,2]
[347693796,1736070640641,-500.0,8.421e-05,2]
[347693798,1736070640650,-500.0,8.421e-05,2]
[347693800,1736070640659,-500.0,8.421e-05,2]
[347693802,1736070640669,-525.92,8.421e-05,2]
[347693804,1736070640678,-1582.19,8.421e-05,2]
[347693806,1736070640687,-1624.66,8.421e-05,2]
[347693808,1736070640696,-500.0,8.421e-05,2]
[347693810,1736070640705,-500.0,8.421e-05,2]
[347693812,1736070640715,-616.96,8.421e-05,2]
[347693814,1736070640724,-500.0,8.421e-05,2]
[347693816,1736070640733,-500.0,8.421e-05,2]
[347693818,1736070640742,-500.0,8.421e-05,2]
[347693820,1736070640752,-500.0,8.421e-05,2]
[347693822,1736070640761,-828.02,8.421e-05,2]
[347693824,1736070640770,-562.93,8.421e-05,2]
[347693826,1736070640779,-500.0,8.421e-05,2]
[347693828,1736070640788,-1137.23,8.421e-05,2]
[347693830,1736070640797,-1270.67,8.421e-05,2]
[347693832,1736070640807,-500.0,8.421e-05,2]
[347693834,1736070640816,-500.0,8.421e-05,2]
[347693836,1736070640826,-500.0,8.421e-05,2]
[347693838,1736070640835,-500.0,8.421e-05,2]
[347693840,1736070640843,-252.57523643,8.421e-05,2]
[347693842,1736070640853,-1553.76,8.421e-05,2]
[347693844,1736070640862,-2182.06,8.421e-05,2]
[347693846,1736070640871,-500.0,8.421e-05,2]
[347693848,1736070640880,-500.0,8.421e-05,2]
[347693850,1736070640889,-500.0,8.421e-05,2]
[347693852,1736070640899,-500.0,8.421e-05,2]
[347693854,1736070640909,-500.0,8.421e-05,2]
[347693856,1736070640918,-500.0,8.421e-05,2]
[347693858,1736070640927,-500.0,8.421e-05,2]
[347693860,1736070640936,-500.0,8.421e-05,2]
[347693861,1736070640945,-520.85,8.421e-05,2]
[347693864,1736070640954,-500.0,8.421e-05,2]
[347693865,1736070640964,-500.0,8.421e-05,2]
[347693867,1736070640973,-500.0,8.421e-05,2]
[347693870,1736070640982,-500.0,8.421e-05,2]
[347693872,1736070640991,-500.0,8.421e-05,2]
[347693873,1736070641001,-500.0,8.421e-05,2]
[347693876,1736070641010,-500.0,8.421e-05,2]
[347693878,1736070641019,-500.0,8.421e-05,2]
[347693879,1736070641028,-500.0,8.421e-05,2]
[347693881,1736070641037,-1730.13,8.421e-05,2]
[347693883,1736070641047,-500.0,8.421e-05,2]
[347693885,1736070641056,-500.0,8.421e-05,2]
[347693887,1736070641065,-551.29,8.421e-05,2]
[347693889,1736070641074,-500.0,8.421e-05,2]
[347693891,1736070641084,-500.0,8.421e-05,2]
[347693893,1736070641093,-500.0,8.421e-05,2]
[347693895,1736070641103,-500.0,8.421e-05,2]
[347693897,1736070641112,-500.0,8.421e-05,2]
[347693899,1736070641121,-500.0,8.421e-05,2]
[347693901,1736070641131,-802.58,8.421e-05,2]
[347693904,1736070641144,-500.0,8.421e-05,2]
[347693905,1736070641153,-500.0,8.421e-05,2]
[347693907,1736070641162,-626.04,8.421e-05,2]
[347693909,1736070641172,-638.48,8.421e-05,2]
[347693911,1736070641181,-500.0,8.421e-05,2]
[347693914,1736070641191,-500.0,8.421e-05,2]
[347693916,1736070641200,-908.45,8.421e-05,2]
[347693918,1736070641209,-500.0,8.421e-05,2]
[347693919,1736070641218,-500.0,8.421e-05,2]
[347693921,1736070641227,-500.0,8.421e-05,2]
[347693923,1736070641236,-500.0,8.421e-05,2]
[347693925,1736070641245,-500.0,8.421e-05,2]
[347693927,1736070641253,-500.0,8.421e-05,2]
[347693928,1736070641262,-500.0,8.421e-05,2]
[347693930,1736070641271,-500.0,8.421e-05,2]
[347693932,1736070641280,-468.3800396,8.421e-05,2]
[347693934,1736070641290,-500.0,8.421e-05,2]
[347693935,1736070641298,-500.0,8.421e-05,2]
[347693937,1736070641307,-500.0,8.421e-05,2]
[347693939,1736070641316,-604.6,8.421e-05,2]
[347693941,1736070641326,-500.0,8.421e-05,2]
[347693943,1736070641334,-500.0,8.421e-05,2]
[347693945,1736070641344,-500.0,8.421e-05,2]
[347693947,1736070641353,-1461.38,8.421e-05,2]
[347693948,1736070641362,-500.0,8.421e-05,2]
[347693950,1736070641373,-500.0,8.421e-05,2]
[347693952,1736070641382,-500.0,8.421e-05,2]
[347693954,1736070641393,-579.27,8.421e-05,2]
[347693956,1736070641402,-1365.74,8.421e-05,2]
[347693957,1736070641411,-2297.8,8.421e-05,2]
[347693959,1736070641421,-500.0,8.421e-05,2]
[347693961,1736070641430,-500.0,8.421e-05,2]
[347693963,1736070641439,-221.01578604,8.421e-05,2]
[347693965,1736070641448,-500.0,8.421e-05,2]
[347693966,1736070641457,-500.0,8.421e-05,2]
[347693968,1736070641467,-500.0,8.421e-05,2]
[347693970,1736070641475,-500.0,8.421e-05,2]
[347693972,1736070641484,-500.0,8.421e-05,2]
[347693974,1736070641493,-500.0,8.421e-05,2]
[347693976,1736070641505,-500.0,8.421e-05,2]
[347693977,1736070641515,-500.0,8.421e-05,2]
[347693979,1736070641524,-1263.12,8.421e-05,2]
[347693981,1736070641532,-500.0,8.421e-05,2]
[347693983,1736070641542,-586.56091768,8.421e-05,2]
[347693985,1736070641551,-500.0,8.421e-05,2]
[347693986,1736070641560,-500.0,8.421e-05,2]
[347693988,1736070641569,-632.9,8.421e-05,2]
[347693990,1736070641578,-500.0,8.421e-05,2]
[347693992,1736070641588,-500.0,8.421e-05,2]
[347693994,1736070641597,-4795.6,8.421e-05,2]
[347693996,1736070641606,-2499.92,8.421e-05,2]
[347693997,1736070641615,-500.0,8.421e-05,2]
[347693999,1736070641624,-2269.3,8.421e-05,2]
[347694001,1736070641634,-500.0,8.421e-05,2]
[347694003,1736070641645,-500.0,8.421e-05,2]
[347694005,1736070641653,-500.0,8.421e-05,2]
[347694007,1736070641663,-508.83,8.421e-05,2]
[347694009,1736070641672,-1045.1,8.421e-05,2]
[347694010,1736070641681,-500.0,8.421e-05,2]
[347694012,1736070641690,-500.0,8.421e-05,2]
[347694014,1736070641700,-578.5785173,8.421e-05,2]
[347694016,1736070641709,-500.0,8.421e-05,2]
[347694018,1736070641718,-500.0,8.421e-05,2]
[347694020,1736070641727,-500.0,8.421e-05,2]
[347694022,1736070641736,-500.0,8.421e-05,2]
[347694024,1736070641744,-500.0,8.421e-05,2]
[347694025,1736070641753,-500.0,8.421e-05,2]
[347694027,1736070641762,-1131.67,8.421e-05,2]
[347694029,1736070641771,-500.0,8.421e-05,2]
[347694031,1736070641780,-500.0,8.421e-05,2]
[347694033,1736070641789,-500.0,8.421e-05,2]
[347694034,1736070641799,-1759.6,8.421e-05,2]
[347694036,1736070641808,-500.0,8.421e-05,2]
[347694038,1736070641816,-500.0,8.421e-05,2]
[347694040,1736070641826,-500.0,8.421e-05,2]
[347694042,1736070641835,-500.0,8.421e-05,2]
[347694043,1736070641844,-500.0,8.421e-05,2]
[347694045,1736070641853,-1060.23,8.421e-05,2]
[347694047,1736070641862,-500.0,8.421e-05,2]
[347694049,1736070641870,-500.0,8.421e-05,2]
[347694051,1736070641879,-621.6,8.421e-05,2]
[347694052,1736070641888,-500.0,8.421e-05,2]
[347694054,1736070641898,-500.0,8.421e-05,2]
[347694056,1736070641907,-500.0,8.421e-05,2]
[347694058,1736070641916,-500.0,8.421e-05,2]
[347694060,1736070641925,-5701.05,8.421e-05,2]
[347694062,1736070641935,-1258.0,8.421e-05,2]
[347694064,1736070641943,-500.0,8.421e-05,2]
[347694066,1736070641952,-500.0,8.421e-05,2]
[347694068,1736070641961,-500.0,8.421e-05,2]
[347694069,1736070641971,-500.0,8.421e-05,2]
[347694071,1736070641980,-500.0,8.421e-05,2]
[347694073,1736070641989,-428.65465859,8.421e-05,2]
[347694075,1736070641998,-3458.35,8.421e-05,2]
[347694077,1736070642007,-500.0,8.421e-05,2]
[347694079,1736070642016,-500.0,8.421e-05,2]
[347694080,1736070642025,-500.0,8.421e-05,2]
[347694082,1736070642034,-2894.89,8.421e-05,2]
[347694084,1736070642043,-500.0,8.421e-05,2]
[347694086,1736070642053,-776.97,8.421e-05,2]
[347694088,1736070642062,-500.0,8.421e-05,2]
[347694090,1736070642071,-500.0,8.421e-05,2]
[347694092,1736070642080,-500.0,8.421e-05,2]
[347694094,1736070642089,-500.0,8.421e-05,2]
[347694096,1736070642098,-500.0,8.421e-05,2]
[347694097,1736070642107,-500.0,8.421e-05,2]
[347694099,1736070642116,-713.53,8.421e-05,2]
[347694101,1736070642126,-4390.34,8.421e-05,2]
[347694103,1736070642135,-500.0,8.421e-05,2]
[347694105,1736070642146,-500.0,8.421e-05,2]
[347694107,1736070642155,-500.0,8.421e-05,2]
[347694109,1736070642164,-500.0,8.421e-05,2]
[347694111,1736070642173,-500.0,8.421e-05,2]
[347694112,1736070642183,-500.0,8.421e-05,2]
[347694114,1736070642192,-17553.25,8.421e-05,2]
[347694116,1736070642202,-500.0,8.421e-05,2]
[347694118,1736070642211,-500.0,8.421e-05,2]
[347694120,1736070642220,-1273.47,8.421e-05,2]
[347694122,1736070642229,-500.0,8.421e-05,2]
[347694124,1736070642238,-1818.07,8.421e-05,2]
[347694126,1736070642248,-500.0,8.421e-05,2]
[347694128,1736070642257,-827.84,8.421e-05,2]
[347694130,1736070642266,-500.0,8.421e-05,2]
[347694131,1736070642275,-500.0,8.421e-05,2]
[347694133,1736070642284,-501.6630817,8.421e-05,2]
[347694135,1736070642293,-500.0,8.421e-05,2]
[347694137,1736070642302,-500.0,8.421e-05,2]
[347694139,1736070642311,-500.0,8.421e-05,2]
[347694141,1736070642320,-500.0,8.421e-05,2]
[347694143,1736070642329,-500.0,8.421e-05,2]
[347694145,1736070642338,-500.0,8.421e-05,2]
[347694146,1736070642348,-949.16,8.421e-05,2]
[347694148,1736070642357,-500.0,8.421e-05,2]
[347694150,1736070642367,-500.0,8.421e-05,2]
[347694152,1736070642376,-500.0,8.421e-05,2]
[347694154,1736070642386,-500.0,8.421e-05,2]
[347694156,1736070642395,-2051.18,8.421e-05,2]
[347694158,1736070642405,-500.0,8.421e-05,2]
[347694160,1736070642413,-500.0,8.421e-05,2]
[347694161,1736070642423,-663.56,8.421e-05,2]
[347694163,1736070642432,-500.0,8.421e-05,2]
[347694165,1736070642442,-500.0,8.421e-05,2]
[347694167,1736070642451,-500.0,8.421e-05,2]
[347694169,1736070642460,-500.0,8.421e-05,2]
[347694171,1736070642469,-500.0,8.421e-05,2]
[347694173,1736070642478,-500.0,8.421e-05,2]
[347694175,1736070642487,-500.0,8.421e-05,2]
[347694192,1736070642647,-500.0,8.421e-05,2]
[347694194,1736070642658,-500.0,8.421e-05,2]
[347694196,1736070642667,-1715.99,8.421e-05,2]
[347694197,1736070642676,-500.0,8.421e-05,2]
[347694199,1736070642685,-500.0,8.421e-05,2]
[347694201,1736070642694,-2602.96,8.421e-05,2]
[347694203,1736070642703,-500.0,8.421e-05,2]
[347694205,1736070642712,-500.0,8.421e-05,2]
[347694207,1736070642721,-500.0,8.421e-05,2]
[347694209,1736070642730,-500.0,8.421e-05,2]
[347694211,1736070642739,-500.0,8.421e-05,2]
[347694213,1736070642749,-500.0,8.421e-05,2]
[347694215,1736070642758,-500.0,8.421e-05,2]
[347694216,1736070642767,-500.0,8.421e-05,2]
[347694217,1736070642776,-692.814745,8.421e-05,2]
[347694218,1736070642785,-500.0,8.421e-05,2]
[347694219,1736070642794,-500.0,8.421e-05,2]
[347694220,1736070642803,-1282.09,8.421e-05,2]
[347694221,1736070642812,-500.0,8.421e-05,2]
[347694222,1736070642820,-500.0,8.421e-05,2]
[347694223,1736070642830,-500.0,8.421e-05,2]
[347694224,1736070642839,-795.22,8.421e-05,2]
[347694225,1736070642848,-500.0,8.421e-05,2]
[347694227,1736070642857,-500.0,8.421e-05,2]
[347694229,1736070642865,-500.0,8.421e-05,2]
[347694230,1736070642875,-500.0,8.421e-05,2]
[347694231,1736070642884,-3452.87,8.421e-05,2]
[347694232,1736070642893,-500.0,8.421e-05,2]
[347694234,1736070642902,-500.0,8.421e-05,2]
[347694236,1736070642912,-500.0,8.421e-05,2]
[347694237,1736070642921,-500.0,8.421e-05,2]
[347694239,1736070642930,-500.0,8.421e-05,2]
[347694240,1736070642939,-1000.97,8.421e-05,2]
[347694241,1736070642949,-500.0,8.421e-05,2]
[347694242,1736070642958,-510.11,8.421e-05,2]
[347694243,1736070642968,-500.0,8.421e-05,2]
[347694244,1736070642977,-500.0,8.421e-05,2]
[347694245,1736070642986,-500.0,8.421e-05,2]
[347694246,1736070642996,-500.0,8.421e-05,2]
[347694247,1736070643004,-500.0,8.421e-05,2]
[347694248,1736070643014,-500.0,8.421e-05,2]
[347694249,1736070643023,-678.124372,8.421e-05,2]
[347694250,1736070643032,-500.0,8.421e-05,2]
[347694251,1736070643041,-500.0,8.421e-05,2]
[347694252,1736070643050,-2247.91,8.421e-05,2]
[347694253,1736070643059,-500.0,8.421e-05,2]
[347694254,1736070643069,-501.56593291,8.421e-05,2]
[347694255,1736070643078,-500.0,8.421e-05,2]
[347694256,1736070643087,-500.0,8.421e-05,2]
[347694257,1736070643096,-500.0,8.421e-05,2]
[347694258,1736070643106,-278.95750636,8.421e-05,2]
[347694259,1736070643115,-500.0,8.421e-05,2]
[347694260,1736070643124,-500.0,8.421e-05,2]
[347694261,1736070643133,-500.0,8.421e-05,2]
[347694262,1736070643143,-500.0,8.421e-05,2]
[347694263,1736070643152,-155.415242,8.421e-05,2]
[347694264,1736070643163,-500.0,8.421e-05,2]
[347694265,1736070643172,-500.0,8.421e-05,2]
[347694266,1736070643181,-500.0,8.421e-05,2]
[347694267,1736070643191,-500.0,8.421e-05,2]
[347694268,1736070643200,-500.0,8.421e-05,2]
[347694269,1736070643209,-500.0,8.421e-05,2]
[347694270,1736070643219,-500.0,8.421e-05,2]
[347694271,1736070643229,-166.136689,8.421e-05,2]
[347694272,1736070643239,-500.0,8.421e-05,2]
[347694273,1736070643248,-500.0,8.421e-05,2]
[347694274,1736070643258,-8597.68,8.421e-05,2]
[347694275,1736070643267,-6123.15,8.421e-05,2]
[347694276,1736070643276,-3529.92,8.421e-05,2]
[347694277,1736070643285,-500.0,8.421e-05,2]
[347694278,1736070643294,-500.0,8.421e-05,2]
[347694279,1736070643303,-529.10726853,8.421e-05,2]
[347694280,1736070643311,-500.0,8.421e-05,2]
[347694281,1736070643320,-667.5,8.421e-05,2]
[347694283,1736070643329,-500.0,8.421e-05,2]
[347694285,1736070643339,-500.0,8.421e-05,2]
[347694286,1736070643348,-500.0,8.421e-05,2]
[347694287,1736070643356,-500.0,8.421e-05,2]
[347694288,1736070643365,-500.0,8.421e-05,2]
[347694289,1736070643375,-500.0,8.421e-05,2]
[347694291,1736070643384,-3856.15,8.421e-05,2]
[347694293,1736070643395,-290.24058741,8.421e-05,2]
[347694295,1736070643448,-209.75941259,8.421e-05,2]
[347694296,1736070643457,-488.03372852,8.421e-05,2]
[347694298,1736070643879,-11.96627148,8.421e-05,2]
[347694299,1736070643892,-726.21673378,8.421e-05,2]
[347694300,1736070643920,-1674.05227661,8.421e-05,2]
[347694301,1736070646126,-491.50130668,8.42e-05,2]
[347694302,1736070646137,-8.49869332,8.42e-05,2]